bitfinex/quotes_ETHUSD_20230119
["timestamp","ask_amount","ask_price","bid_price","bid_amount"]
[1674168649101,9.9795,1550.0,1549.8,0.3153524]
[1674168651883,22.88284,1550.0,1549.8,0.25]
[1674168658010,23.55982075,1550.0,1549.8,0.25]
[1674168659151,24.64167747,1550.0,1549.8,0.25]
[1674168659326,24.64167184,1550.0,1549.8,0.25]
[1674168661703,26.91810225,1550.0,1549.8,0.25]
[1674168664269,27.93362407,1550.0,1549.8,0.25]
[1674168665304,26.91810225,1550.0,1549.8,0.25]
[1674168665568,27.93362407,1550.0,1549.8,0.25]
[1674168665757,26.91810225,1550.0,1549.8,0.25]
[1674168665988,27.93362407,1550.0,1549.8,0.25]
[1674168669666,0.67698075,1549.9,1549.8,0.25]
[1674168669893,9.01385691,1549.9,1549.8,0.25]
[1674168670117,8.01986381,1549.9,1549.8,0.25]
[1674168670650,7.13500075,1549.9,1549.8,0.25]
[1674168670856,8.01991708,1549.9,1549.8,0.25]
[1674168672186,8.01980714,1549.9,1549.8,0.25]
[1674168672525,8.01981708,1549.9,1549.8,0.25]
[1674168672941,6.45802,1549.9,1549.8,0.25]
[1674168673592,8.01989661,1549.9,1549.8,0.25]
[1674168673903,8.01983751,1549.9,1549.8,0.25]
[1674168674063,8.01983887,1549.9,1549.8,0.25]
[1674168676069,8.01783887,1549.9,1549.8,0.25]
[1674168676280,8.01983887,1549.9,1549.8,0.25]
[1674168681320,6.45802,1549.9,1549.8,0.25]
[1674168682024,8.02054527,1549.9,1549.8,0.25]
[1674168682238,7.13500075,1549.9,1549.8,0.25]
[1674168682543,6.45802,1549.9,1549.8,0.25]
[1674168682753,8.02055744,1549.9,1549.8,0.25]
[1674168682961,6.45802,1549.9,1549.8,0.25]
[1674168683191,7.13500075,1549.9,1549.8,0.25]
[1674168683331,6.45802,1549.9,1549.8,0.25]
[1674168684178,8.02072684,1549.9,1549.8,0.25]
[1674168685597,6.45802,1549.9,1549.8,0.25]
[1674168686175,7.13500075,1549.9,1549.8,0.25]
[1674168686385,8.01475625,1549.9,1549.8,0.25]
[1674168689469,1.56273625,1549.9,1549.8,0.25]
[1674168689645,1.55673625,1549.9,1549.8,0.25]
[1674168691574,18.25044807,1550.0,1549.8,0.25]
[1674168691793,19.20596989,1550.0,1549.8,0.25]
[1674168692318,17.10809075,1550.0,1549.8,0.24758286]
[1674168692507,10.65648075,1550.0,1549.8,0.24758286]
[1674168692721,9.9795,1550.0,1549.8,0.24758286]
[1674168692890,9.9795,1550.0,1549.9,0.66434272]
[1674168693117,0.006,1550.0,1549.9,0.66434272]
[1674168693324,19.20682075,1550.1,1549.9,0.66434272]
[1674168693537,19.20682075,1550.1,1549.9,0.91434272]
[1674168694051,20.28686151,1550.1,1549.9,0.91434272]
[1674168694376,13.83527631,1550.1,1549.9,1.00577699]
[1674168694583,13.83530208,1550.1,1549.9,1.00577699]
[1674168694904,20.28650562,1550.1,1549.9,0.91434272]
[1674168695161,19.20668075,1550.1,1549.9,0.91434272]
[1674168695706,12.75548075,1550.1,1549.9,0.91434272]
[1674168701421,20.28641929,1550.1,1549.9,0.91434272]
[1674168701842,20.28641671,1550.1,1549.9,0.91434272]
[1674168702113,24.83798756,1550.1,1549.9,0.91434272]
[1674168703755,23.7583516,1550.1,1549.9,0.91434272]
[1674168704570,24.8378999,1550.1,1549.9,0.91434272]
[1674168705413,23.7583516,1550.1,1549.9,0.91434272]
[1674168706004,13.83502196,1550.1,1549.9,0.91434272]
[1674168706318,12.75548075,1550.1,1549.9,0.91434272]
[1674168706636,19.20678075,1550.1,1549.9,0.91434272]
[1674168709846,20.28606799,1550.1,1549.9,0.91434272]
[1674168711401,19.20678075,1550.1,1549.9,0.91434272]
[1674168713470,23.00528301,1550.1,1549.9,0.91434272]
[1674168714149,22.32830226,1550.1,1549.9,0.91434272]
[1674168714779,22.32830226,1550.1,1549.9,0.91184492]
[1674168715356,23.00528301,1550.1,1549.9,0.91184492]
[1674168715883,19.20678075,1550.1,1549.9,0.91184492]
[1674168716099,18.5298,1550.1,1549.9,0.91184492]
[1674168717063,19.20678075,1550.1,1549.9,0.91184492]
[1674168717414,18.5298,1550.1,1549.9,0.91184492]
[1674168717826,19.20678075,1550.1,1549.9,0.91184492]
[1674168721112,18.5298,1550.1,1549.9,0.91184492]
[1674168721536,12.0785,1550.1,1549.9,0.91184492]
[1674168721719,0.006,1550.1,1549.9,0.91184492]
[1674168721923,10.774,1550.2,1549.9,1.71535253]
[1674168723296,11.45098075,1550.2,1549.9,1.71535253]
[1674168723750,10.774,1550.2,1549.9,1.71535253]
[1674168727868,10.774,1550.2,1549.9,0.91184492]
[1674168728234,11.45098075,1550.2,1549.9,0.91184492]
[1674168730890,11.45098075,1550.2,1549.9,7.36385492]
[1674168731100,11.45098075,1550.2,1549.9,7.45985492]
[1674168732361,10.774,1550.2,1549.9,7.45985492]
[1674168733134,11.45098075,1550.2,1549.9,7.45985492]
[1674168733961,10.774,1550.2,1549.9,7.45985492]
[1674168734170,10.774,1550.2,1549.9,9.6645386]
[1674168735638,10.77081045,1550.2,1549.9,9.6645386]
[1674168740004,10.76861196,1550.2,1549.9,9.6645386]
[1674168744064,10.76861196,1550.2,1550.0,0.26695575]
[1674168744888,10.76861196,1550.2,1550.1,0.71301349]
[1674168745422,0.006,1550.2,1550.1,0.71301349]
[1674168745640,17.88737,1550.3,1550.1,0.96301349]
[1674168756284,18.56435075,1550.3,1550.1,0.96301349]
[1674168756502,19.62171311,1550.3,1550.1,0.96301349]
[1674168757221,18.56435075,1550.3,1550.1,0.96301349]
[1674168757977,19.62171366,1550.3,1550.1,0.96301349]
[1674168759191,18.56435075,1550.3,1550.1,0.96301349]
[1674168759659,19.62216388,1550.3,1550.1,0.96301349]
[1674168763070,18.56435075,1550.3,1550.1,0.96301349]
[1674168764087,19.62255368,1550.3,1550.1,0.96301349]
[1674168765121,21.44179192,1550.3,1550.1,0.96301349]
[1674168765279,22.45731374,1550.3,1550.1,0.96301349]
[1674168766209,21.44180603,1550.3,1550.1,0.96301349]
[1674168766684,21.44184033,1550.3,1550.1,0.96301349]
[1674168767020,21.44183055,1550.3,1550.1,0.96301349]
[1674168767387,22.45735237,1550.3,1550.1,0.96301349]
[1674168768326,2.92271599,1550.2,1550.1,0.96301349]
[1674168768873,2.24573524,1550.2,1550.1,0.96301349]
[1674168770777,2.92271599,1550.2,1550.1,0.96301349]
[1674168771287,3.77742079,1550.2,1550.1,0.96301349]
[1674168772852,2.24573524,1550.2,1550.1,0.96301349]
[1674168774294,2.92271599,1550.2,1550.1,0.96301349]
[1674168774874,2.24573524,1550.2,1550.1,0.96301349]
[1674168775083,2.92271599,1550.2,1550.1,0.96301349]
[1674168775407,2.24573524,1550.2,1550.1,0.96301349]
[1674168779557,2.19573524,1550.2,1550.1,0.96301349]
[1674168783382,21.50388831,1550.3,1550.1,0.96301349]
[1674168783591,21.44388831,1550.3,1550.1,0.96301349]
[1674168786803,13.17428007,1550.3,1550.1,0.96301349]
[1674168786954,0.006,1550.3,1550.1,7.41417349]
[1674168787161,10.8224464,1550.4,1550.1,7.51017349]
[1674168788581,10.8224464,1550.4,1550.1,1.05901349]
[1674168788808,10.8224464,1550.4,1550.1,0.96301349]
[1674168792639,10.8224464,1550.4,1550.1,0.96815315]
[1674168793687,11.88286755,1550.4,1550.1,0.96815315]
[1674168796158,10.8224464,1550.4,1550.1,0.96815315]
[1674168796464,11.88297737,1550.4,1550.1,0.96815315]
[1674168796829,10.8224464,1550.4,1550.1,0.96815315]
[1674168799728,11.88298956,1550.4,1550.1,0.96815315]
[1674168800040,10.8224464,1550.4,1550.1,0.96815315]
[1674168800190,11.88293003,1550.4,1550.1,0.96815315]
[1674168804888,10.8224464,1550.4,1550.1,0.96815315]
[1674168807187,11.88239525,1550.4,1550.1,0.96815315]
[1674168808999,12.89791707,1550.4,1550.1,0.96815315]
[1674168810423,11.88239525,1550.4,1550.1,0.96815315]
[1674168810633,12.89791707,1550.4,1550.1,0.96815315]
[1674168812003,0.67698075,1550.3,1550.1,0.96815315]
[1674168812197,1.67698075,1550.3,1550.1,0.96815315]
[1674168812566,0.67698075,1550.3,1550.1,0.96815315]
[1674168813089,1.53147462,1550.3,1550.1,0.96815315]
[1674168813264,12.95791707,1550.4,1550.1,0.96815315]
[1674168813465,12.89791707,1550.4,1550.1,0.96815315]
[1674168813683,0.67698075,1550.3,1550.1,0.96815315]
[1674168813896,1.53145663,1550.3,1550.1,0.96815315]
[1674168814426,12.95791707,1550.4,1550.1,0.96815315]
[1674168814607,12.89791707,1550.4,1550.1,0.96815315]
[1674168815081,0.67698075,1550.3,1550.1,0.96815315]
[1674168815311,1.53152047,1550.3,1550.1,0.96815315]
[1674168818464,7.98204047,1550.3,1550.1,0.96815315]
[1674168818598,7.13350075,1550.3,1550.1,0.96815315]
[1674168819521,13.58402075,1550.3,1550.1,0.96815315]
[1674168820338,14.59954257,1550.3,1550.1,0.96815315]
[1674168820928,1.53157802,1550.2,1550.1,0.96815315]
[1674168821143,7.98235802,1550.2,1550.1,0.96815315]
[1674168821487,14.43913802,1550.2,1550.1,0.96301349]
[1674168822108,13.58454075,1550.2,1550.1,0.96301349]
[1674168822435,12.90756,1550.2,1550.1,0.96301349]
[1674168823959,14.43897223,1550.2,1550.1,0.96301349]
[1674168824687,12.90756,1550.2,1550.1,0.96301349]
[1674168824900,14.4389855,1550.2,1550.1,0.96301349]
[1674168826661,13.76173743,1550.2,1550.1,0.96301349]
[1674168826842,14.43871818,1550.2,1550.1,0.96034573]
[1674168827024,16.63519418,1550.2,1550.1,0.96034573]
[1674168828484,17.650716,1550.2,1550.1,0.96034573]
[1674168828692,16.63519418,1550.2,1550.1,0.96034573]
[1674168828937,17.650716,1550.2,1550.1,0.96034573]
[1674168829129,16.97373525,1550.2,1550.1,0.96034573]
[1674168829479,16.63407587,1550.2,1550.1,0.96034573]
[1674168830263,15.77989844,1550.2,1550.1,0.96034573]
[1674168830469,16.63165582,1550.2,1550.1,0.96034573]
[1674168830685,16.63365582,1550.2,1550.1,0.96034573]
[1674168831228,15.104036,1550.2,1550.1,0.96034573]
[1674168835211,19.92534264,1550.2,1550.1,0.96034573]
[1674168835439,20.94086446,1550.2,1550.1,0.96034573]
[1674168835635,20.26500202,1550.2,1550.1,0.96034573]
[1674168836087,21.32495087,1550.2,1550.1,0.96034573]
[1674168837573,22.67835184,1550.2,1550.1,0.96034573]
[1674168837727,21.32495087,1550.2,1550.1,0.96034573]
[1674168849499,21.32495087,1550.2,1550.1,0.95816207]
[1674168852579,22.67835184,1550.2,1550.1,0.95816207]
[1674168852988,21.66283002,1550.2,1550.1,0.95816207]
[1674168856471,22.67603472,1550.2,1550.1,0.95816207]
[1674168856662,21.99810245,1550.2,1550.1,0.95816207]
[1674168856871,21.32263375,1550.2,1550.1,0.95816207]
[1674168857126,22.67603472,1550.2,1550.1,0.95816207]
[1674168862060,22.67663297,1550.2,1550.1,0.95816207]
[1674168863640,21.66283002,1550.2,1550.1,0.95816207]
[1674168863812,22.67698783,1550.2,1550.1,0.95816207]
[1674168864023,21.66283002,1550.2,1550.1,0.95816207]
[1674168871270,23.35458123,1550.2,1550.1,0.95816207]
[1674168872563,23.35458123,1550.2,1550.1,0.95473035]
[1674168872797,23.35459046,1550.2,1550.1,0.95473035]
[1674168872965,22.00118026,1550.2,1550.1,0.95473035]
[1674168874551,27.32642905,1550.2,1550.1,0.95473035]
[1674168874945,27.32642905,1550.2,1550.1,0.74442522]
[1674168878231,29.01922918,1550.2,1550.1,0.74442522]
[1674168878780,27.98336148,1550.2,1550.1,0.74442522]
[1674168880774,27.98336148,1550.2,1550.1,0.74442522]
[1674168880951,29.67600865,1550.2,1550.1,0.74442522]
[1674168881408,29.6760198,1550.2,1550.1,0.74442522]
[1674168882646,27.98336148,1550.2,1550.1,0.74442522]
[1674168882867,29.67574856,1550.2,1550.1,0.74442522]
[1674168884114,27.98336148,1550.2,1550.1,0.74442522]
[1674168884674,27.32642905,1550.2,1550.1,0.74442522]
[1674168885256,27.32642905,1550.2,1550.1,0.52982522]
[1674168885257,23.79332905,1550.2,1550.1,0.52982522]
[1674168885691,23.35582931,1550.2,1550.1,0.52982522]
[1674168885903,23.83972931,1550.2,1550.1,0.52982522]
[1674168886130,22.14728472,1550.2,1550.1,0.52982522]
[1674168886512,23.83972931,1550.2,1550.1,0.52982522]
[1674168886730,22.48577364,1550.2,1550.1,0.52982522]
[1674168889301,20.79332905,1550.2,1550.1,0.52982522]
[1674168891264,20.30942905,1550.2,1550.1,0.52982522]
[1674168893586,20.53942905,1550.2,1550.1,0.52982522]
[1674168894007,30.72952905,1550.2,1550.1,0.52982522]
[1674168894638,32.75322854,1550.2,1550.1,0.52982522]
[1674168894855,30.72952905,1550.2,1550.1,0.52982522]
[1674168901307,32.42157378,1550.2,1550.1,0.52982522]
[1674168901500,30.72952905,1550.2,1550.1,0.52982522]
[1674168902870,32.42174745,1550.2,1550.1,0.52982522]
[1674168903262,32.42175444,1550.2,1550.1,0.52982522]
[1674168903480,30.72952905,1550.2,1550.1,0.52982522]
[1674168903895,32.42184234,1550.2,1550.1,0.52982522]
[1674168906468,32.42195465,1550.2,1550.1,0.52674037]
[1674168917588,32.41928015,1550.2,1550.1,0.52674037]
[1674168928915,30.72685455,1550.2,1550.1,0.52674037]
[1674168929130,32.41967002,1550.2,1550.1,0.52674037]
[1674168929335,30.72685455,1550.2,1550.1,0.52674037]
[1674168929833,32.41967244,1550.2,1550.1,0.52674037]
[1674168930324,30.72685455,1550.2,1550.1,0.52674037]
[1674168930483,32.41966384,1550.2,1550.1,0.52674037]
[1674168930695,30.72685455,1550.2,1550.1,0.52674037]
[1674168931359,32.41966336,1550.2,1550.1,0.52674037]
[1674168932074,32.41966336,1550.2,1550.1,0.03231515]
[1674168933947,32.41966336,1550.2,1550.1,0.80751243]
[1674168937154,22.22956336,1550.2,1550.1,0.80751243]
[1674168939765,22.22956336,1550.2,1550.1,0.80400124]
[1674168954088,20.53675455,1550.2,1550.1,0.80400124]
[1674168954257,22.23008968,1550.2,1550.1,0.80400124]
[1674168956007,22.23009647,1550.2,1550.1,0.80400124]
[1674168960102,23.58467788,1550.2,1550.1,0.80400124]
[1674168960569,22.23009647,1550.2,1550.1,0.80400124]
[1674168961107,21.1582045,1550.2,1550.1,0.80400124]
[1674168961268,19.12615434,1550.2,1550.1,0.80400124]
[1674168962046,15.4957573,1550.2,1550.1,0.807128]
[1674168962215,14.43580845,1550.2,1550.1,0.807128]
[1674168962864,15.45168424,1550.2,1550.1,0.807128]
[1674168963520,14.43580845,1550.2,1550.1,0.807128]
[1674168964090,12.9048855,1550.2,1550.1,0.807128]
[1674168965378,6.4541055,1550.2,1550.1,0.807128]
[1674168965936,0.00397267,1550.2,1550.1,1.15208823]
[1674168966089,13.00369832,1550.4,1550.1,0.8878408]
[1674168966298,13.00369832,1550.4,1550.1,2.1408408]
[1674168966299,6.55341832,1550.4,1550.1,2.1408408]
[1674168966547,6.55341832,1550.4,1550.2,0.21408408]
[1674168966965,7.23064466,1550.4,1550.2,0.21408408]
[1674168967134,6.55341832,1550.4,1550.2,0.21408408]
[1674168967349,6.55341832,1550.4,1550.2,1.46508408]
[1674168967554,6.55341832,1550.4,1550.3,1.29250841]
[1674168968454,6.55341832,1550.4,1550.3,2.53550841]
[1674168968455,0.10313832,1550.4,1550.3,2.53550841]
[1674168968770,0.09716565,1550.4,1550.3,2.53550841]
[1674168969931,6.565e-05,1550.4,1550.3,2.53550841]
[1674168970156,0.09445789,1550.5,1550.3,19.968976]
[1674168970467,0.09445789,1550.5,1550.4,4.5028976]
[1674168974183,0.09445789,1550.5,1550.4,10.9528376]
[1674168974399,0.09445789,1550.5,1550.4,11.0488376]
[1674168977868,0.09445789,1550.5,1550.4,11.045641]
[1674168979394,0.09445789,1550.5,1550.4,11.05026754]
[1674168984714,0.09195808,1550.5,1550.4,11.05026754]
[1674168987275,0.09195808,1550.5,1550.4,17.50020754]
[1674168987782,0.09195808,1550.5,1550.4,20.79195513]
[1674168989004,0.09195808,1550.5,1550.4,22.04495513]
[1674168990110,0.09195808,1550.5,1550.4,22.69401753]
[1674168991062,0.09195808,1550.5,1550.4,21.44101753]
[1674168995172,0.10517533,1550.8,1550.5,0.15909146]
[1674168995372,0.10517533,1550.8,1550.7,2.5]
[1674168995519,0.10517533,1550.8,1550.7,19.68914759]
[1674168995731,0.10517533,1550.8,1550.7,23.03514759]
[1674168998922,0.10517533,1550.8,1550.7,23.04649469]
[1674168999571,0.10517533,1550.8,1550.7,22.04649469]
[1674168999744,0.10517533,1550.8,1550.7,24.40078818]
[1674169003670,0.10517533,1550.8,1550.7,28.21664688]
[1674169003884,0.10517533,1550.8,1550.7,24.68710757]
[1674169004095,0.10517533,1550.8,1550.7,24.40078818]
[1674169004316,0.10517533,1550.8,1550.7,28.50299349]
[1674169004479,0.10517533,1550.8,1550.7,24.68713998]
[1674169004804,0.10517533,1550.8,1550.7,24.40078818]
[1674169011040,0.10517533,1550.8,1550.7,28.21664688]
[1674169011259,0.10517533,1550.8,1550.7,25.31886387]
[1674169011779,0.10517533,1550.8,1550.7,24.68699563]
[1674169012140,0.10517533,1550.8,1550.7,24.40078818]
[1674169015108,0.10199625,1550.8,1550.7,24.40078818]
[1674169019142,0.10199625,1550.8,1550.7,28.21664688]
[1674169019465,0.10199625,1550.8,1550.7,24.40078818]
[1674169019628,0.10199625,1550.8,1550.7,28.21664688]
[1674169020049,0.10199625,1550.8,1550.7,24.40078818]
[1674169020266,0.10199625,1550.8,1550.7,26.56519194]
[1674169020610,0.10199625,1550.8,1550.7,27.23630309]
[1674169020997,0.10199625,1550.8,1550.7,26.56519194]
[1674169021344,0.10199625,1550.8,1550.7,30.38105064]
[1674169021562,0.10199625,1550.8,1550.7,27.05913179]
[1674169023917,0.10199625,1550.8,1550.7,27.73024294]
[1674169025001,0.02475789,1550.8,1550.7,27.73024294]
[1674169025212,0.02475789,1550.8,1550.7,38.33310164]
[1674169025444,0.02475789,1550.8,1550.7,34.51949873]
[1674169026186,0.02475789,1550.8,1550.7,34.27898878]
[1674169026551,0.02475789,1550.8,1550.7,34.27915452]
[1674169026764,0.02475789,1550.8,1550.7,38.09500915]
[1674169027348,0.02475789,1550.8,1550.7,34.27915045]
[1674169027523,0.02475789,1550.8,1550.7,38.09500915]
[1674169027868,0.02475789,1550.8,1550.7,34.27915043]
[1674169028195,0.02475789,1550.8,1550.7,37.42148054]
[1674169029000,0.02475789,1550.8,1550.7,33.60562184]
[1674169029215,0.02475789,1550.8,1550.7,38.09518085]
[1674169029614,0.02475789,1550.8,1550.7,37.42148054]
[1674169031364,0.02475789,1550.8,1550.7,37.75721279]
[1674169034287,0.02475789,1550.8,1550.7,39.43622744]
[1674169034912,0.02475789,1550.8,1550.7,35.62036874]
[1674169036031,0.02475789,1550.8,1550.7,39.43622744]
[1674169036249,0.02475789,1550.8,1550.7,35.62036874]
[1674169036715,0.02475789,1550.8,1550.7,33.94135409]
[1674169037506,0.02475789,1550.8,1550.7,37.75721279]
[1674169040078,0.0060548,1550.8,1550.7,37.75721279]
[1674169040307,0.0060548,1550.8,1550.7,33.94135409]
[1674169041023,0.0060548,1550.8,1550.7,37.75721279]
[1674169041357,0.0060548,1550.8,1550.7,33.94135409]
[1674169041504,0.11095681,1551.0,1550.8,1.1574612]
[1674169041735,0.11095681,1551.0,1550.9,43.97865223]
[1674169042101,0.00095681,1551.0,1550.9,45.50450994]
[1674169042318,0.00095681,1551.0,1550.9,43.97564873]
[1674169042483,0.00095681,1551.0,1550.9,44.22564873]
[1674169042678,0.00095681,1551.0,1550.9,48.04150743]
[1674169044093,0.00095681,1551.0,1550.9,47.54756758]
[1674169044460,0.00095681,1551.0,1550.9,49.23042388]
[1674169044675,0.00095681,1551.0,1550.9,49.23042216]
[1674169045367,0.00095681,1551.0,1550.9,49.23042357]
[1674169045745,0.11095681,1551.2,1551.0,7.787]
[1674169045957,0.11095681,1551.2,1551.1,41.4159361]
[1674169046305,0.11095681,1551.2,1551.1,42.8167838]
[1674169046675,0.11095681,1551.2,1551.1,43.0667838]
[1674169047252,0.11095681,1551.2,1551.1,42.05706163]
[1674169047439,0.11095681,1551.2,1551.1,44.41135512]
[1674169047657,0.11095681,1551.2,1551.1,44.74828701]
[1674169049209,0.12261635,1551.4,1551.3,6.787]
[1674169049420,0.12261635,1551.4,1551.3,38.26559393]
[1674169049985,0.12261635,1551.4,1551.3,39.18672458]
[1674169050176,0.12261635,1551.4,1551.3,38.51559393]
[1674169050600,0.12261635,1551.4,1551.3,38.56794412]
[1674169050989,0.12261635,1551.4,1551.3,39.23882992]
[1674169051509,0.12261635,1551.4,1551.3,38.56794412]
[1674169051930,0.12261635,1551.4,1551.3,39.23875291]
[1674169052141,0.12261635,1551.4,1551.3,38.22924759]
[1674169052564,0.12261635,1551.4,1551.3,45.46752473]
[1674169052817,0.12261635,1551.4,1551.3,47.79508772]
[1674169053089,0.12261635,1551.4,1551.3,46.05414787]
[1674169053620,0.12261635,1551.4,1551.3,42.91072618]
[1674169054095,0.12261635,1551.4,1551.3,42.23828917]
[1674169054279,0.12261635,1551.4,1551.3,46.05414787]
[1674169054495,0.12261635,1551.4,1551.3,42.91072618]
[1674169054900,0.12261635,1551.4,1551.3,46.72658488]
[1674169055233,0.14015816,1551.6,1551.5,32.56848]
[1674169055446,0.14015816,1551.6,1551.5,40.32765514]
[1674169055987,0.14015816,1551.6,1551.5,40.57765514]
[1674169056197,0.14015816,1551.6,1551.5,40.59380012]
[1674169060822,8.16e-06,1551.6,1551.5,41.84180012]
[1674169061031,0.13515473,1551.7,1551.5,47.72030503]
[1674169061294,0.13515473,1551.7,1551.6,16.68604108]
[1674169061448,0.13515473,1551.7,1551.6,18.45731172]
[1674169061844,0.13515473,1551.7,1551.6,30.00713006]
[1674169061973,0.13515473,1551.7,1551.6,29.67196108]
[1674169062186,0.13515473,1551.7,1551.6,29.92196108]
[1674169063448,0.13515473,1551.7,1551.6,28.66896108]
[1674169066195,0.13515473,1551.7,1551.6,28.66600703]
[1674169072293,0.13515473,1551.7,1551.6,28.66600703]
[1674169074100,0.13515473,1551.7,1551.6,29.00142464]
[1674169074312,0.13515473,1551.7,1551.6,28.66600703]
[1674169076898,0.13515473,1551.7,1551.6,21.87900703]
[1674169077320,0.13515473,1551.7,1551.6,19.52471354]
[1674169078115,0.13515473,1551.7,1551.6,13.07975354]
[1674169078638,0.13515473,1551.7,1551.6,6.63479354]
[1674169079966,0.13515473,1551.7,1551.6,3.63479354]
[1674169080186,0.13515473,1551.7,1551.6,3.53879354]
[1674169083646,1.38515473,1551.7,1551.6,0.25]
[1674169083858,1.0,1551.6,1551.5,0.1]
[1674169084121,7.44537,1551.5,1551.1,2.11473323]
[1674169084291,15.24671267,1551.5,1551.2,3.62847339]
[1674169084502,15.24671267,1551.5,1551.4,0.25]
[1674169084714,13.99671267,1551.5,1551.4,0.25]
[1674169084938,13.99671267,1551.5,1551.2,3.29174759]
[1674169085166,9.09854127,1551.4,1551.2,3.29174759]
[1674169085330,9.10451394,1551.4,1551.2,3.54174759]
[1674169094688,7.85151394,1551.4,1551.2,3.54174759]
[1674169095113,7.84951394,1551.4,1551.2,3.54374759]
[1674169095323,7.85151394,1551.4,1551.2,3.54174759]
[1674169097226,0.78515139,1551.3,1551.2,3.54174759]
[1674169097419,14.35753394,1551.4,1551.2,3.54174759]
[1674169097629,14.29753394,1551.4,1551.2,3.54174759]
[1674169116880,14.2952012,1551.4,1551.2,3.54174759]
[1674169117087,12.89786267,1551.4,1551.2,3.54174759]
[1674169120142,12.89786267,1551.4,1551.3,0.33784033]
[1674169120829,12.89786267,1551.4,1551.3,0.58784033]
[1674169124248,12.89786267,1551.4,1551.3,1.26027734]
[1674169124407,12.89786267,1551.4,1551.3,0.58784033]
[1674169126553,6.45184267,1551.4,1551.3,1.72507983]
[1674169126709,6.45184267,1551.4,1551.3,5.01682742]
[1674169126920,6.45184267,1551.4,1551.3,6.12144613]
[1674169127770,0.00597267,1551.4,1551.3,5.44900912]
[1674169127989,11.01177267,1551.5,1551.3,6.70200912]
[1674169128197,11.01177267,1551.5,1551.4,4.97568234]
[1674169128638,0.00597267,1551.5,1551.4,12.43009105]
[1674169128872,0.13515473,1551.7,1551.4,11.85019754]
[1674169129053,0.13515473,1551.7,1551.5,5.5479913]
[1674169129273,0.13515473,1551.7,1551.6,3.29174759]
[1674169138418,0.13179172,1551.7,1551.6,3.29174759]
[1674169139178,0.13179172,1551.7,1551.6,3.54174759]
[1674169139326,0.13179172,1551.7,1551.6,4.03108641]
[1674169147108,0.13179172,1551.7,1551.6,0.25]
[1674169147109,14.16687172,1551.7,1551.6,0.25]
[1674169147406,25.63564439,1551.7,1551.6,0.25]
[1674169148734,26.11904439,1551.7,1551.6,0.25]
[1674169149933,27.5356467,1551.7,1551.6,0.25]
[1674169150298,31.26633277,1551.7,1551.6,0.25]
[1674169150562,30.5269568,1551.7,1551.6,0.25]
[1674169150722,31.2664008,1551.7,1551.6,0.25]
[1674169151505,30.1204008,1551.7,1551.6,0.25]
[1674169151717,10.83996439,1551.7,1551.6,0.25]
[1674169151981,10.35656439,1551.7,1551.6,0.25]
[1674169154395,0.13776439,1551.7,1551.6,0.25]
[1674169154558,0.13179172,1551.7,1551.6,0.25]
[1674169157123,0.13179172,1551.7,1551.6,3.54174759]
[1674169157751,0.13179172,1551.7,1551.6,3.53881035]
[1674169164787,0.13179172,1551.7,1551.6,3.53881035]
[1674169167924,1.93640198,1551.7,1551.6,0.24706276]
[1674169168135,9.63294198,1551.7,1551.6,0.24706276]
[1674169168372,9.63891465,1551.7,1551.6,0.24706276]
[1674169168554,10.31614099,1551.7,1551.6,0.24706276]
[1674169168765,19.69291465,1551.7,1551.6,0.24706276]
[1674169168989,21.11072273,1551.7,1551.6,0.24706276]
[1674169169402,27.55526273,1551.7,1551.6,0.24706276]
[1674169171293,28.52964913,1551.7,1551.6,0.24706276]
[1674169171973,27.55526273,1551.7,1551.6,0.24706276]
[1674169172186,28.5295594,1551.7,1551.6,0.24706276]
[1674169173687,29.54543519,1551.7,1551.6,0.24706276]
[1674169176805,29.54369544,1551.7,1551.6,0.24706276]
[1674169177171,28.86820885,1551.7,1551.6,0.24706276]
[1674169177822,29.54369716,1551.7,1551.6,0.24706276]
[1674169178802,28.86820885,1551.7,1551.6,0.24706276]
[1674169178993,29.54361709,1551.7,1551.6,0.24706276]
[1674169179607,28.86820885,1551.7,1551.6,0.24706276]
[1674169180029,29.54355125,1551.7,1551.6,0.24706276]
[1674169181296,28.52767546,1551.7,1551.6,0.24706276]
[1674169181467,29.54355125,1551.7,1551.6,0.24349708]
[1674169181837,28.52767546,1551.7,1551.6,0.24349708]
[1674169182046,27.55337879,1551.7,1551.6,0.24349708]
[1674169182299,29.54308236,1551.7,1551.6,0.24349708]
[1674169186199,28.29108236,1551.7,1551.6,0.24349708]
[1674169187587,27.27520657,1551.7,1551.6,0.24349708]
[1674169190460,28.29108236,1551.7,1551.6,0.24349708]
[1674169190817,28.29098982,1551.7,1551.6,0.24349708]
[1674169192404,27.27483571,1551.7,1551.6,0.24349708]
[1674169193446,26.30128625,1551.7,1551.6,0.24349708]
[1674169193668,25.56070451,1551.7,1551.6,0.24349708]
[1674169193832,26.30050544,1551.7,1551.6,0.24349708]
[1674169194310,24.88545465,1551.7,1551.6,0.24349708]
[1674169194492,26.30051504,1551.7,1551.6,0.24349708]
[1674169194819,26.3005136,1551.7,1551.6,0.24349708]
[1674169195395,26.30051504,1551.7,1551.6,0.24349708]
[1674169200325,27.27459405,1551.7,1551.6,0.24349708]
[1674169200543,28.29046984,1551.7,1551.6,0.24349708]
[1674169201455,27.61521998,1551.7,1551.6,0.24349708]
[1674169201971,26.46921998,1551.7,1551.6,0.24128843]
[1674169202119,18.0518563,1551.7,1551.6,0.24128843]
[1674169202330,16.63630439,1551.7,1551.6,0.24128843]
[1674169204429,17.31204577,1551.7,1551.6,0.24128843]
[1674169204642,10.86750577,1551.7,1551.6,0.24128843]
[1674169204905,17.31204577,1551.7,1551.6,0.24128843]
[1674169205074,19.79566875,1551.7,1551.6,0.24128843]
[1674169205536,19.11992737,1551.7,1551.6,0.24128843]
[1674169205728,20.53588544,1551.7,1551.6,0.24128843]
[1674169205914,18.05226246,1551.7,1551.6,0.24128843]
[1674169207169,18.05226246,1551.7,1551.6,0.24128843]
[1674169209492,7.99826246,1551.7,1551.6,0.24128843]
[1674169209740,0.13776439,1551.7,1551.6,0.24128843]
[1674169209894,0.13179172,1551.7,1551.6,0.24128843]
[1674169213486,0.13179172,1551.7,1551.6,3.95865923]
[1674169213738,0.13179172,1551.7,1551.6,7.22206458]
[1674169213889,0.13179172,1551.7,1551.6,7.31806458]
[1674169216095,0.13179172,1551.7,1551.6,6.07106458]
[1674169216574,0.13179172,1551.7,1551.6,5.64544137]
[1674169217794,0.13179172,1551.7,1551.6,5.65946531]
[1674169218370,0.13179172,1551.7,1551.6,6.08452129]
[1674169218519,0.13179172,1551.7,1551.6,9.08452146]
[1674169218729,0.13179172,1551.7,1551.6,8.65946531]
[1674169219564,0.13179172,1551.7,1551.6,9.0845059]
[1674169220356,0.13179172,1551.7,1551.6,9.08439031]
[1674169220953,0.13179172,1551.7,1551.6,9.08438543]
[1674169221416,0.13179172,1551.7,1551.6,8.65946531]
[1674169221579,0.13179172,1551.7,1551.6,9.08429055]